bitfinex-derivatives/quotes_ETHF0:USTF0_20240822
["timestamp","ask_amount","ask_price","bid_price","bid_amount"]
[1724323853552,1.86860696,2636.9,2636.8,0.37914]
[1724323853748,2.05824609,2636.9,2636.8,0.37914]
[1724323854055,1.86860696,2636.9,2636.8,0.37914]
[1724323854253,1.86860696,2636.9,2636.8,0.76014]
[1724323854753,1.86860696,2636.9,2636.7,0.37914]
[1724323854754,0.37915,2636.8,2636.7,0.37914]
[1724323854953,1.37170773,2636.8,2636.7,1.85214]
[1724323856243,0.99255773,2636.8,2636.7,1.85214]
[1724323856449,2.24773696,2636.9,2636.8,0.37914]
[1724323856655,2.43737308,2636.9,2636.8,0.37914]
[1724323856957,2.43737259,2636.9,2636.8,0.37914]
[1724323857447,2.82067259,2636.9,2636.8,0.37914]
[1724323857648,2.63103696,2636.9,2636.8,0.37914]
[1724323857848,2.82066663,2636.9,2636.8,0.37914]
[1724323858049,2.63103696,2636.9,2636.8,0.37914]
[1724323858649,2.82067242,2636.9,2636.8,0.37914]
[1724323859060,3.20667242,2636.9,2636.8,0.37914]
[1724323860052,3.01703696,2636.9,2636.8,0.37914]
[1724323860358,3.20667447,2636.9,2636.8,0.37914]
[1724323860556,2.63790696,2636.9,2636.8,0.37914]
[1724323860758,2.82754644,2636.9,2636.8,0.37914]
[1724323861569,1.33923948,2636.9,2636.8,0.37914]
[1724323862270,1.67942149,2636.9,2636.8,1.32699]
[1724323862468,2.48303369,2637.2,2636.8,12.0006]
[1724323862469,1.98557938,2637.2,2636.8,12.0006]
[1724323862675,1.98605982,2637.7,2637.1,5.07710492]
[1724323862964,1.48947489,2637.7,2637.6,2.08494247]
[1724323863167,1.48947489,2637.7,2637.4,1.489439]
[1724323863368,2.23409489,2637.6,2637.5,2.0846327]
[1724323863567,0.74945592,2637.6,2637.5,1.092]
[1724323863864,0.37905,2637.4,2637.3,0.99832833]
[1724323864071,0.37905,2637.4,2637.3,1.09769563]
[1724323864274,4.55805,2637.4,2637.3,1.09769563]
[1724323864669,14.80549,2637.4,2637.3,0.00569563]
[1724323865168,0.37912,2636.9,2636.8,0.9926327]
[1724323865363,0.37914,2636.8,2636.7,0.9926327]
[1724323865564,0.37914,2636.8,2636.6,4.67897]
[1724323865565,2.22535791,2636.8,2636.6,4.2998]
[1724323865868,0.387,2636.7,2636.6,4.2998]
[1724323866065,0.37917,2636.6,2636.5,1.489439]
[1724323866258,5.26397,2636.6,2636.5,0.99334252]
[1724323866471,5.26397,2636.6,2636.4,0.00569563]
[1724323866472,0.37918,2636.5,2636.4,0.99903815]
[1724323866673,4.17198,2636.5,2636.4,0.99903815]
[1724323867069,4.17198,2636.5,2636.4,0.00569563]
[1724323867480,4.17198,2636.5,2636.1,6.798439]
[1724323867481,0.37923,2636.2,2636.1,0.99334252]
[1724323867681,4.17283,2636.2,2636.1,0.99334252]
[1724323868080,1.49015116,2636.2,2636.1,0.99334252]
[1724323868380,2.55345116,2636.3,2636.1,1.89671993]
[1724323868581,2.55345116,2636.3,2636.2,0.99336369]
[1724323868892,2.55338543,2636.3,2636.2,0.99336369]
[1724323869286,1.0633,2636.3,2636.2,0.99336369]
[1724323869590,1.48990776,2636.3,2636.2,0.37923]
[1724323869787,0.3647,2636.3,2636.2,0.37923]
[1724323869988,1.85460776,2636.3,2636.2,1.37240912]
[1724323870186,0.3647,2636.3,2636.2,0.37923]
[1724323870687,1.49560339,2636.4,2636.2,4.17283]
[1724323870885,1.49560339,2636.4,2636.3,0.99307345]
[1724323871282,1.49560339,2636.4,2636.3,1.37228345]
[1724323871487,1.49560339,2636.4,2636.3,0.99307345]
[1724323871790,1.49560339,2636.4,2636.3,1.37228345]
[1724323871981,1.49560339,2636.4,2636.3,0.99307345]
[1724323872382,1.49560339,2636.4,2636.3,1.37228345]
[1724323872589,0.00569563,2636.4,2636.3,1.37228345]
[1724323872788,0.00569563,2636.4,2636.3,2.6272028]
[1724323872991,0.00569563,2636.4,2636.3,4.11651183]
[1724323873384,0.00569563,2636.4,2636.3,7.90931183]
[1724323873693,0.99289475,2636.7,2636.6,0.37917]
[1724323874297,0.99289475,2636.7,2636.6,0.75807]
[1724323874591,0.99289475,2636.7,2636.5,0.99278761]
[1724323874783,0.3534,2636.6,2636.5,0.99278761]
[1724323875189,0.3534,2636.6,2636.5,4.78558761]
[1724323875693,0.3534,2636.6,2636.5,5.16476761]
[1724323876390,0.99289475,2636.7,2636.6,0.37917]
[1724323878294,0.99289475,2636.8,2636.7,0.37915]
[1724323878494,0.99280136,2636.8,2636.7,0.37915]
[1724323878997,2.24953339,2636.9,2636.6,0.37916]
[1724323879298,0.99278601,2636.7,2636.6,0.37916]
[1724323880392,4.78558601,2636.7,2636.4,0.99278761]
[1724323880591,0.37918,2636.5,2636.4,0.99278761]
[1724323880790,0.99278601,2636.5,2636.4,0.3792]
[1724323880989,1.10008,2636.5,2636.4,0.99278761]
[1724323881296,2.09286601,2636.5,2636.3,1.75088761]
[1724323881492,0.3792,2636.4,2636.3,0.99278761]
[1724323881689,0.37921,2636.3,2636.2,0.99278761]
[1724323881996,0.37924,2636.1,2636.0,1e-08]
[1724323882302,1.37230358,2636.1,2636.0,1e-08]
[1724323882697,1.73710358,2636.1,2636.0,1e-08]
[1724323883096,1.35786358,2636.1,2636.0,0.37925001]
[1724323883292,0.99306358,2636.2,2636.1,0.37924]
[1724323883700,0.99306358,2636.2,2636.0,1e-08]
[1724323883701,2.24690776,2636.4,2636.2,0.37922]
[1724323884100,0.37921,2636.3,2636.1,0.37923]
[1724323884397,0.99271748,2636.2,2636.1,0.37923]
[1724323885115,0.99271748,2636.2,2636.0,1e-08]
[1724323885116,1.37194748,2636.2,2636.0,0.37925001]
[1724323885301,0.3764,2636.1,2636.0,0.37925001]
[1724323887099,0.75564,2636.1,2636.0,1e-08]
[1724323887293,5.54195748,2636.1,2636.0,1e-08]
[1724323889204,4.54924,2636.1,2636.0,1e-08]
[1724323889503,5.5412739,2636.1,2636.0,1e-08]
[1724323891098,6.03914776,2636.1,2636.0,1e-08]
[1724323891490,6.03914776,2636.1,2635.4,0.99278761]
[1724323891491,10.65990776,2636.1,2635.4,0.99278761]
[1724323891692,10.65990776,2636.1,2635.5,0.37932]
[1724323891693,5.14778413,2635.9,2635.5,0.37932]
[1724323891899,0.37931,2635.6,2635.3,1.34838761]
[1724323892095,1.0993,2635.5,2635.3,1.34838761]
[1724323892290,1.0993,2635.5,2635.3,0.3556]
[1724323892493,1.0993,2635.5,2635.4,0.37934]
[1724323892698,1.10407219,2635.5,2635.4,0.37934]
[1724323893814,1.48340219,2635.5,2635.4,0.37934]
[1724323895003,1.48340219,2635.5,2635.3,0.73762979]
[1724323895206,0.37934,2635.4,2635.3,0.00267979]
[1724323895599,4.17374,2635.4,2635.3,0.00267979]
[1724323897504,5.1221,2635.4,2635.3,0.00267979]
[1724323898402,4.17374,2635.4,2635.3,0.00267979]
[1724323900909,3.7944,2635.4,2635.3,0.38202979]
[1724323901217,1.10407219,2635.5,2635.4,0.37934]
[1724323901603,1.48340219,2635.5,2635.4,0.37934]
[1724323901919,1.10407219,2635.5,2635.4,0.37934]
[1724323902112,0.73527219,2635.5,2635.4,0.37934]
[1724323902612,0.00477219,2635.5,2635.4,0.37934]
[1724323908606,0.00477219,2635.5,2635.4,6.79574]
[1724323910514,0.00477219,2635.5,2635.4,3.00134]
[1724323912208,0.38410219,2635.5,2635.3,0.37127979]
[1724323912421,0.38467219,2635.5,2635.3,0.00267979]
[1724323912717,0.74734,2635.4,2635.3,0.00267979]
[1724323913116,4.54174,2635.4,2635.3,0.00267979]
[1724323915319,5.4901,2635.4,2635.3,0.00267979]
[1724323916919,8.6979,2635.4,2635.3,0.00267979]
[1724323917425,0.37937,2635.2,2635.1,0.00569563]
[1724323917922,4.17457,2635.2,2635.1,0.00569563]
[1724323918312,4.17457,2635.2,2635.1,0.00898019]
[1724323921027,5.123,2635.2,2635.1,0.00898019]
[1724323921524,6.11480413,2635.2,2635.1,0.00898019]
[1724323921714,11.11480413,2635.2,2635.1,0.00898019]
[1724323921915,12.06323413,2635.2,2635.1,0.00898019]
[1724323922116,0.37944,2634.8,2634.7,0.37943]
[1724323922522,1.12942,2634.9,2634.8,0.37943]
[1724323923022,0.37944,2634.8,2634.7,0.37943]
[1724323923217,0.37944,2634.8,2634.7,0.38265089]
[1724323924225,0.37944,2634.8,2634.7,0.00322089]
[1724323925820,0.94864,2634.6,2634.1,4.56552]
[1724323926024,0.37948,2634.4,2634.1,0.37952]
[1724323926218,0.7065,2634.5,2634.1,0.37952]
[1724323926219,0.7369,2634.3,2634.1,0.37952]
[1724323926624,0.7369,2634.3,2634.0,3.00153]
[1724323926821,0.7369,2634.3,2634.0,3.00560226]
[1724323927024,0.3574,2634.3,2634.0,0.00407226]
[1724323927225,0.73691,2634.3,2634.1,0.37952]
[1724323927424,0.37951,2634.2,2634.0,0.00407226]
[1724323927623,3.5652,2634.3,2634.0,0.00407226]
[1724323927925,0.74413,2634.1,2634.0,0.00407226]
[1724323928730,3.9447,2634.3,2634.1,0.37952]
[1724323929027,3.9447,2634.3,2634.1,0.74472]
[1724323929230,7.7407,2634.3,2634.1,0.74472]
[1724323929420,3.9447,2634.3,2634.1,0.74472]
[1724323930115,0.37951,2634.2,2634.0,0.38360226]
[1724323930635,0.37953,2634.1,2634.0,0.00407226]
[1724323931925,0.37952,2634.2,2634.0,0.38360226]
[1724323932128,0.37952,2634.2,2634.0,0.73520226]
[1724323933229,0.37951,2634.2,2634.0,0.73520226]
[1724323933434,0.37951,2634.2,2634.1,0.37953]
[1724323933923,0.37951,2634.2,2634.0,0.73520226]
[1724323934123,0.37951,2634.2,2634.1,0.37953]
[1724323934431,3.2078,2634.3,2634.2,0.37951]
[1724323935433,3.2078,2634.3,2634.2,4.17551]
[1724323936138,0.728,2634.7,2634.5,0.37946]
[1724323936435,0.37947,2634.6,2634.4,0.37947]
[1724323936633,0.37947,2634.5,2634.4,0.37947]
[1724323936832,0.37947,2634.5,2634.3,0.37949]
[1724323937032,0.37948,2634.5,2634.3,0.37949]
[1724323938327,3.2078,2634.6,2634.4,0.37948]
[1724323938635,0.37947,2634.5,2634.4,0.37948]
[1724323938936,3.2078,2634.6,2634.5,0.37947]
[1724323940131,0.37942,2634.9,2634.4,0.9487]
[1724323940327,0.99038906,2635.1,2634.7,2.622]
[1724323940328,0.3842,2635.1,2634.7,2.622]
[1724323940538,0.37938,2635.2,2634.7,2.622]
[1724323940740,0.37938,2635.1,2635.0,0.3794]
[1724323941434,0.94843,2635.2,2634.8,0.37941]
[1724323941628,0.37941,2634.9,2634.8,0.37941]
[1724323942636,0.3794,2635.0,2634.7,2.622]
[1724323942837,0.37941,2634.9,2634.8,0.37942]
[1724323943528,0.3794,2635.0,2634.9,0.37941]
[1724323944233,0.3794,2635.0,2634.7,2.622]
[1724323944234,0.37939,2635.1,2635.0,0.3794]
[1724323944627,3.9588,2635.3,2635.0,0.3794]
[1724323944628,3.2078,2635.3,2635.0,6.4172]
[1724323944939,0.01046782,2635.5,2635.4,0.37934]
[1724323945340,0.01046782,2635.5,2635.4,4.17374]
[1724323946639,3.2078,2636.0,2635.8,0.37927]
[1724323946836,3.58705,2636.0,2635.8,0.37927]
[1724323947038,3.58705,2636.0,2635.6,2.622]
[1724323947039,3.58705,2636.0,2635.7,0.37929]
[1724323947731,3.58971609,2636.0,2635.7,0.37929]
[1724323947933,3.21046609,2636.0,2635.6,2.62769563]
[1724323948130,3.21046609,2636.0,2635.8,0.37927]
[1724323949644,3.21046609,2636.0,2635.9,0.37927]
[1724323949944,3.21046609,2636.0,2635.9,0.00419444]
[1724323950347,3.58971609,2636.0,2635.9,0.00419444]
[1724323950840,3.96201609,2636.0,2635.9,0.00419444]
[1724323951540,7.75561609,2636.0,2635.9,0.00419444]
[1724323954049,4.54781609,2636.0,2635.9,0.00419444]
[1724323954347,7.75561609,2636.0,2635.9,0.00419444]
[1724323955734,3.21046609,2636.0,2635.9,0.38346444]
[1724323961447,0.00266609,2636.0,2635.9,0.38346444]
[1724323961639,0.00266609,2636.0,2635.9,0.76416444]
[1724323964451,0.00266609,2636.0,2635.9,1.11646444]
[1724323970155,3.2078,2636.4,2636.0,0.94814]
[1724323970458,0.37917,2636.6,2636.5,0.37918]
[1724323970954,4.69806,2636.7,2636.6,0.37917]
[1724323971146,3.21217711,2636.7,2636.6,0.37917]
[1724323971350,0.00437711,2636.7,2636.6,5.11989]
[1724323971650,0.00437711,2636.7,2636.6,5.27707]
[1724323972953,0.00437711,2636.7,2636.6,6.22499]
[1724323973857,0.00437711,2636.7,2636.6,7.17291]
[1724323974058,0.00263014,2636.9,2636.8,0.37914]
[1724323974252,0.00263014,2636.9,2636.8,7.74179]
[1724323974561,0.00263014,2636.9,2636.8,6.79394]
[1724323975059,0.006641,2636.9,2636.8,6.79394]
[1724323977060,0.006641,2636.9,2636.8,7.22785481]
[1724323977857,0.006641,2636.9,2636.8,6.79394]
[1724323978160,0.006641,2636.9,2636.8,3.00114]
[1724323984852,0.006641,2636.9,2636.8,3.94899]
[1724323987864,0.006641,2636.9,2636.8,3.00114]
[1724323991160,0.374841,2636.9,2636.6,2.622]
[1724323991372,0.37916,2636.7,2636.6,0.37916]
[1724323991854,0.37916,2636.7,2636.3,2.622]
[1724323992061,0.3565,2636.6,2636.2,0.42760343]
[1724323992264,0.3792,2636.5,2636.3,0.3792]
[1724323992570,0.3528,2636.4,2636.3,0.3792]
[1724323992967,0.3528,2636.4,2636.3,4.172]
[1724323993168,0.3565,2636.6,2636.5,0.37918]
[1724323993568,0.3565,2636.6,2636.5,3.94914]
[1724323994877,0.3565,2636.6,2636.5,3.00118]
[1724323999175,0.94796,2636.5,2636.1,4.56523]
[1724323999475,0.37921,2636.4,2636.2,0.37922]
[1724323999679,1.11182,2636.3,2636.1,4.56523]
[1724323999975,1.11182,2636.3,2636.2,0.37922]
[1724324000171,0.3714,2636.2,2636.1,4.56523]
[1724324000766,4.165,2636.2,2635.9,0.00419444]
[1724324000975,0.3714,2636.2,2636.1,0.37924]
[1724324012290,0.37917,2636.6,2636.5,0.37917]
[1724324012475,0.74407,2636.6,2636.5,0.37917]
[1724324012672,4.53687,2636.6,2636.5,0.37917]
[1724324012878,4.1577,2636.6,2636.5,0.37917]
[1724324013183,4.1577,2636.6,2636.4,0.37919]
[1724324013394,0.3649,2636.6,2636.4,0.37919]
[1724324013585,0.7547,2636.5,2636.4,0.37919]
[1724324013784,1.13389,2636.5,2636.4,0.37919]
[1724324013986,4.34169,2636.5,2636.4,0.37919]
[1724324014284,4.34169,2636.5,2636.2,2.622]
[1724324014489,0.37921,2636.3,2636.2,2.622]
[1724324014785,0.37921,2636.4,2636.2,3.00121]
[1724324015183,0.37921,2636.4,2636.3,0.37921]
[1724324016594,3.9625,2636.5,2636.4,0.3792]
[1724324018186,4.34168,2636.5,2636.4,0.3792]
[1724324018689,1.13388,2636.5,2636.4,0.3792]
[1724324018889,0.7547,2636.5,2636.4,0.3792]
[1724324021196,1.74508906,2636.5,2636.4,0.3792]
[1724324022596,2.12426906,2636.5,2636.4,0.3792]
[1724324022895,2.12426906,2636.5,2636.2,2.622]
[1724324022896,0.3792,2636.4,2636.3,0.3792]
[1724324023281,0.99038906,2636.4,2636.3,0.3792]
[1724324023486,2.12427906,2636.5,2636.3,0.3792]
[1724324023892,1.74508906,2636.5,2636.4,0.3792]
[1724324025689,0.7547,2636.5,2636.4,0.3792]
[1724324026196,0.3792,2636.4,2636.3,0.37921]
[1724324026400,1.37123821,2636.4,2636.3,0.37921]
[1724324026992,0.3792,2636.4,2636.2,0.37922]
[1724324027295,0.9921138,2636.3,2636.2,0.37922]
[1724324027499,1.3713238,2636.3,2636.2,0.37922]
[1724324027714,0.9921138,2636.3,2636.1,0.37923]
[1724324028004,0.37924,2636.1,2636.0,7.18725]
[1724324028206,1.37151577,2636.1,2636.0,4.186]
[1724324028506,1.12744,2636.1,2636.0,4.56525]
[1724324028696,1.12744,2636.1,2635.9,0.38345444]
[1724324029001,0.99236049,2636.0,2635.9,0.38345444]
[1724324029207,1.12745,2636.1,2635.9,0.38345444]
[1724324029405,2.11981049,2636.1,2635.9,0.38345444]
[1724324029600,1.12745,2636.1,2636.0,0.37925]
[1724324030110,1.12745,2636.1,2635.9,0.38345444]
[1724324030899,4.17285,2636.0,2635.9,0.00419444]
[1724324031198,5.66275776,2636.0,2635.9,0.00419444]
[1724324033196,5.66275776,2636.0,2635.9,0.38346444]
[1724324033197,1.48990776,2636.0,2635.9,0.38346444]
[1724324033398,2.61735776,2636.1,2636.0,0.37925]
[1724324033907,6.03170776,2636.1,2636.0,0.37925]
[1724324034100,2.23810776,2636.1,2636.0,0.37925]
[1724324034708,0.7482,2636.1,2636.0,0.37925]
[1724324034900,2.61734776,2636.1,2636.0,0.37925]
[1724324035222,0.7482,2636.1,2636.0,0.37925]
[1724324035594,1.74083004,2636.1,2636.0,0.37925]
[1724324035798,0.99263004,2636.1,2636.0,0.37925]
[1724324036008,4.58743004,2636.2,2636.1,0.37924]
[1724324036510,4.58743004,2636.2,2636.1,0.74634]
[1724324036899,1.37963004,2636.2,2636.1,0.74634]
[1724324038695,0.99263004,2636.3,2636.2,0.37922]
[1724324038907,1.48990776,2636.4,2636.3,0.37921]
[1724324038908,0.99263004,2636.4,2636.3,0.37921]
[1724324039099,2.98809776,2636.5,2636.3,0.37921]
[1724324039513,0.99304688,2636.4,2636.3,0.37921]
[1724324039717,2.98809776,2636.5,2636.3,0.37921]
[1724324040223,0.99305664,2636.4,2636.3,0.37921]
[1724324040397,0.99311478,2636.4,2636.3,0.37921]
[1724324040603,2.98809776,2636.5,2636.3,0.37921]
[1724324041015,1.86910776,2636.4,2636.2,0.37922]
[1724324041198,0.99316242,2636.3,2636.2,0.37922]
[1724324043304,0.99316242,2636.3,2636.2,1.37200761]
[1724324048305,0.99316242,2636.3,2636.2,3.26867828]
[1724324048509,0.99316242,2636.4,2636.3,0.37921]
[1724324048714,0.99316242,2636.4,2636.3,1.37274234]
[1724324050903,2.98809776,2636.5,2636.4,0.3792]
[1724324052413,0.7411,2636.5,2636.4,1.4712]
[1724324052617,5.07688776,2636.6,2636.5,0.37918]
[1724324052810,2.33852015,2636.8,2636.4,2.83753234]
[1724324052811,1.48990776,2636.7,2636.4,2.83753234]
[1724324053009,1.44155,2636.8,2636.6,1.092]
[1724324053221,1.44155,2636.8,2636.7,0.37915]
[1724324053222,2.9316293,2636.8,2636.7,0.37915]
[1724324054822,1.4900793,2636.8,2636.7,6.79395]
[1724324055118,0.006641,2636.9,2636.8,0.37914]
[1724324055419,0.006641,2636.9,2636.8,1.372209]
[1724324057615,0.006641,2636.9,2636.8,0.37914]
[1724324058418,0.006641,2636.9,2636.7,2.622]
[1724324058419,1.8758603,2636.9,2636.7,2.622]
[1724324058618,1.72192539,2636.8,2636.7,3.00115]
[1724324058816,2.5988193,2636.8,2636.5,0.72927]
[1724324059017,4.20019176,2636.7,2636.5,0.37917]
[1724324059223,0.99239176,2636.6,2636.3,0.3753]
[1724324059421,0.99239176,2636.4,2636.2,4.56522]
[1724324059622,0.7296,2636.3,2636.2,4.56522]
[1724324059840,0.3526,2636.3,2636.2,4.56522]
[1724324060126,0.99239176,2636.4,2636.3,0.37921]
[1724324062215,0.99239176,2636.4,2636.3,4.17201]
[1724324062427,0.99239176,2636.4,2636.3,4.54351]
[1724324062926,0.99239176,2636.4,2636.3,7.75131]
[1724324063129,0.99239176,2636.4,2636.3,13.69934]
[1724324063321,0.62753357,2636.4,2636.3,13.69934]
[1724324064220,1.4900793,2636.5,2636.4,0.3792]
[1724324064414,1.4900793,2636.5,2636.4,6.794]
[1724324064620,1.4900793,2636.5,2636.4,7.1535]
[1724324065021,1.4900793,2636.5,2636.4,13.1015]
[1724324066330,1.4900793,2636.5,2636.4,12.1535]
[1724324068329,2.83957469,2636.9,2636.8,0.37914]
[1724324068330,0.356541,2636.9,2636.8,0.37914]
[1724324074533,7.357141,2636.9,2636.4,0.99162996]
[1724324074733,0.37914,2636.8,2636.6,0.37916]
[1724324076530,0.37914,2636.8,2636.7,1.092]
[1724324076932,4.17194,2636.8,2636.7,1.092]
[1724324077630,4.55694,2636.8,2636.7,1.092]
[1724324077836,4.55694,2636.8,2636.7,1.47115]
[1724324078142,4.55694,2636.8,2636.7,1.092]
[1724324079637,4.55694,2636.8,2636.7,1.47115]
[1724324079842,4.1778,2636.8,2636.7,1.47115]
[1724324080143,6.04539243,2636.8,2636.7,1.47115]
[1724324080339,4.1778,2636.8,2636.7,1.47115]
[1724324080846,4.55694,2636.8,2636.7,1.47115]
[1724324081348,6.54019992,2636.8,2636.7,1.47115]
[1724324081543,4.55694,2636.8,2636.7,1.47115]
[1724324081736,4.55694,2636.8,2636.7,1.092]
[1724324082041,0.37915,2636.7,2636.6,0.37916]
[1724324082238,2.74739992,2636.8,2636.7,0.37915]
[1724324082643,6.04615078,2636.8,2636.7,0.37915]
[1724324083341,4.55694,2636.8,2636.7,0.37915]
[1724324083537,6.04640998,2636.8,2636.7,0.37915]
[1724324084146,4.55694,2636.8,2636.7,0.37915]
[1724324084648,6.0465948,2636.8,2636.7,0.37915]
[1724324084841,5.6674548,2636.8,2636.7,0.37915]
[1724324085644,5.0539958,2636.9,2636.8,0.37914]
[1724324085845,1.8461958,2636.9,2636.8,0.37914]
[1724324089047,0.356541,2636.9,2636.8,0.37914]
[1724324089546,1.8461958,2636.9,2636.8,0.37914]
[1724324090548,0.356541,2636.9,2636.8,0.37914]
[1724324090752,1.84650081,2636.9,2636.8,0.37914]
[1724324091145,0.356541,2636.9,2636.8,0.37914]
[1724324092659,1.84650081,2636.9,2636.8,0.37914]
[1724324092839,0.356541,2636.9,2636.8,1.37076996]
[1724324093660,1.84650081,2636.9,2636.8,1.37076996]
[1724324093951,0.356541,2636.9,2636.8,1.37076996]
[1724324095352,0.006641,2636.9,2636.8,3.76291991]
[1724324095759,0.360241,2636.9,2636.8,3.76291991]
[1724324097154,5.05800081,2636.9,2636.8,1.37302782]
[1724324097546,5.05800081,2636.9,2636.8,2.2755617]
[1724324097742,5.05800081,2636.9,2636.8,3.26955417]
[1724324097951,5.05800081,2636.9,2636.8,3.26966693]
[1724324098355,5.05800081,2636.9,2636.8,2.27556813]
[1724324098544,7.360841,2636.9,2636.8,0.99431832]
[1724324098744,7.360841,2636.9,2636.8,2.08631832]
[1724324098950,7.739961,2636.9,2636.8,2.08631832]
[1724324099150,7.739961,2636.9,2636.8,1.092]
[1724324099151,9.72322092,2636.9,2636.8,1.092]
[1724324099949,9.72322092,2636.9,2636.8,2.08631832]
[1724324099950,7.739961,2636.9,2636.8,2.08631832]
[1724324100150,7.360841,2636.9,2636.8,2.46545832]
[1724324100351,5.05940659,2636.9,2636.8,3.36749843]
[1724324100556,3.568041,2636.9,2636.8,2.46541914]
[1724324100755,5.05946401,2636.9,2636.8,3.3675759]
[1724324100957,5.05946401,2636.9,2636.8,1.47114]
[1724324101154,5.05946401,2636.9,2636.8,3.3675934]
[1724324101758,5.0595142,2636.9,2636.8,3.3675934]
[1724324101958,3.947161,2636.9,2636.8,2.46547534]
[1724324102158,3.947161,2636.9,2636.8,1.89649872]
[1724324102463,3.947161,2636.9,2636.7,2.46546903]
[1724324102464,9.72865396,2636.9,2636.7,2.46546903]
[1724324102767,5.93585396,2636.9,2636.7,2.46546903]
[1724324102950,0.37914,2636.8,2636.7,2.08632903]
[1724324103356,5.55673396,2636.9,2636.7,2.46547903]
[1724324103548,5.93586396,2636.9,2636.7,2.46547903]
[1724324103752,5.93586396,2636.9,2636.8,0.99432903]
[1724324104158,9.72866396,2636.9,2636.8,0.99432903]
[1724324104351,9.72866396,2636.9,2636.7,2.46547903]
[1724324104554,5.93586396,2636.9,2636.7,2.46547903]
[1724324104960,3.947171,2636.9,2636.8,0.99432903]
[1724324105265,7.739971,2636.9,2636.8,0.99432903]
[1724324105455,7.739971,2636.9,2636.8,3.26992483]
[1724324105757,7.739971,2636.9,2636.8,0.37914]
[1724324105966,7.739971,2636.9,2636.7,2.46546903]
[1724324106161,1.98917018,2636.8,2636.7,2.46546903]
[1724324106361,1.98917018,2636.8,2636.7,1.47114]
[1724324107066,1.98917018,2636.8,2636.7,2.46546903]
[1724324107260,5.55721118,2636.9,2636.8,0.37914]
[1724324107567,5.55718565,2636.9,2636.8,1.47114]
[1724324107763,9.34998565,2636.9,2636.8,1.47114]
[1724324108063,9.34998565,2636.9,2636.8,2.46546903]
[1724324108260,7.360841,2636.9,2636.8,1.47114]
[1724324108563,9.34996728,2636.9,2636.8,2.46546903]
[1724324109663,9.34996728,2636.9,2636.8,1.47114]
[1724324110275,9.35001952,2636.9,2636.8,2.46546903]
[1724324110463,9.35001952,2636.9,2636.8,1.47114]
[1724324110960,9.35001952,2636.9,2636.8,2.46546903]
[1724324111866,5.55721952,2636.9,2636.8,2.46546903]
[1724324112871,3.568041,2636.9,2636.8,4.85493479]
[1724324114561,5.0599258,2636.9,2636.8,2.95858494]
[1724324114756,5.0599258,2636.9,2636.8,4.85488913]
[1724324116963,5.0599258,2636.9,2636.8,3.36744419]
[1724324117161,5.0599258,2636.9,2636.8,4.8592878]
[1724324118660,5.0599258,2636.9,2636.8,3.36744419]
[1724324118860,5.0599258,2636.9,2636.8,4.8592342]
[1724324119160,5.0599258,2636.9,2636.8,4.85932726]
[1724324120764,5.0599258,2636.9,2636.8,2.46570295]
[1724324120765,5.55721952,2636.9,2636.8,2.46570295]
[1724324122562,0.37914,2636.8,2636.7,1.37370295]
[1724324122764,0.37914,2636.8,2636.7,4.36232802]
[1724324122963,0.37914,2636.8,2636.7,2.46578934]
[1724324123167,5.93634952,2636.9,2636.8,0.37914]
[1724324123470,5.20361952,2636.9,2636.8,2.46578597]
[1724324123770,3.214441,2636.9,2636.8,4.11703676]
[1724324123971,3.214441,2636.9,2636.8,4.46703676]
[1724324124677,3.214441,2636.9,2636.8,5.41488676]
[1724324124967,1.49177589,2637.1,2636.8,19.88054214]
[1724324125175,2.97488988,2637.9,2637.1,1.32683]
[1724324125176,1.49177589,2637.2,2637.1,1.32683]
[1724324125479,1.49177589,2637.5,2637.3,0.94767]
[1724324125675,1.49177589,2637.6,2637.5,0.37904]
[1724324125864,1.49177589,2637.6,2637.5,2.46463188]
[1724324126066,1.49473593,2637.6,2637.5,3.36674613]
[1724324126267,0.00296004,2637.6,2637.5,8.64834257]
[1724324126473,0.00296004,2637.6,2637.5,6.25519976]
[1724324126969,0.00296004,2637.6,2637.5,8.15087822]
[1724324127277,0.00296004,2637.6,2637.5,7.15791766]
[1724324127473,0.00296004,2637.6,2637.5,5.26224]
[1724324127677,0.00296004,2637.6,2637.5,6.25475371]
[1724324127880,0.00296004,2637.6,2637.5,2.08460675]
[1724324128561,0.00296004,2637.6,2637.5,1.092]
[1724324128764,0.38198004,2637.6,2637.5,1.092]
[1724324128970,1.49473593,2637.6,2637.4,1.092]
[1724324129170,1.86809395,2637.5,2637.3,1.09769563]
[1724324129375,5.07589395,2637.5,2637.3,1.09769563]
[1724324130371,0.37905,2637.4,2637.3,1.09769563]
[1724324130574,5.07589395,2637.5,2637.3,1.09769563]
[1724324131280,5.07589395,2637.5,2637.4,1.092]
[1724324131667,5.65929395,2637.5,2637.4,1.092]
[1724324131873,8.86709395,2637.5,2637.4,1.092]
[1724324132378,3.7912,2637.5,2637.4,1.092]
[1724324133278,8.86709395,2637.5,2637.4,1.092]
[1724324133475,4.17024,2637.5,2637.4,1.092]
[1724324133666,0.37904,2637.5,2637.4,1.092]
[1724324134179,0.37904,2637.5,2637.4,1.47105]
[1724324134771,0.37904,2637.5,2637.4,1.092]
[1724324135175,0.37904,2637.5,2637.4,1.47105]
[1724324135478,3.58979004,2637.6,2637.4,1.47105]
[1724324135979,3.58979004,2637.6,2637.5,1.092]
[1724324136177,3.58979004,2637.6,2637.5,1.47104]
[1724324136377,5.07884399,2637.6,2637.5,1.092]
[1724324137170,5.07884399,2637.6,2637.4,1.47104]
[1724324137171,0.37904,2637.5,2637.4,1.47104]
[1724324137376,0.37904,2637.5,2637.4,1.092]
[1724324137377,1.86809395,2637.5,2637.4,1.092]
[1724324137570,0.37904,2637.5,2637.4,1.092]
[1724324137981,0.37905,2637.4,2637.3,1.09769563]
[1724324138987,0.37905,2637.4,2637.3,1.47675563]
[1724324139482,0.37905,2637.4,2637.3,1.09769563]
[1724324139883,0.37905,2637.4,2637.3,1.47675563]
[1724324140268,6.73938399,2637.6,2637.3,1.47675563]
[1724324140471,5.07883399,2637.6,2637.5,0.37904]
[1724324140684,7.38098004,2637.6,2637.4,1.092]